bitfinex-derivatives/quotes_BTCF0:USTF0_20250602
["timestamp","ask_amount","ask_price","bid_price","bid_amount"]
[1748838983803,1.30550268,105030.0,105020.0,0.80007183]
[1748838983990,1.76686972,105030.0,105020.0,0.13266938]
[1748838984190,1.76686972,105030.0,105020.0,0.00776]
[1748838984398,1.88564903,105030.0,105020.0,0.00776]
[1748838985197,1.63562439,105030.0,105020.0,0.00776]
[1748838985592,1.63562439,105030.0,105020.0,0.00576]
[1748838985800,1.63862439,105030.0,105020.0,0.00576]
[1748838986195,1.64262439,105030.0,105020.0,0.00576]
[1748838986593,2.00342439,105030.0,105020.0,0.00576]
[1748838988199,1.77114695,105030.0,105020.0,0.00576]
[1748838988399,2.00342439,105030.0,105020.0,0.00576]
[1748838988997,1.88728567,105030.0,105020.0,0.00576]
[1748838989398,1.76850636,105030.0,105020.0,0.00576]
[1748838990292,1.33162636,105030.0,105020.0,0.00576]
[1748838990497,1.76914636,105030.0,105020.0,0.00576]
[1748838990697,1.76894636,105030.0,105020.0,0.00576]
[1748838990903,1.76914636,105030.0,105020.0,0.00576]
[1748838995011,1.88528508,105030.0,105020.0,0.00576]
[1748838996115,1.76914636,105030.0,105020.0,0.00576]
[1748839002815,1.88528508,105030.0,105020.0,0.00576]
[1748839003417,1.88792567,105030.0,105020.0,0.00576]
[1748839003616,2.00406439,105030.0,105020.0,0.00576]
[1748839004026,1.88792567,105030.0,105020.0,0.00576]
[1748839006116,1.90686344,105030.0,105020.0,0.00576]
[1748839009120,1.90590344,105030.0,105020.0,0.00576]
[1748839010319,1.90590344,105030.0,105020.0,0.03706]
[1748839011628,1.81068744,105030.0,105020.0,0.03706]
[1748839012023,1.69190813,105030.0,105020.0,0.06756]
[1748839012227,1.84034698,105030.0,105020.0,0.06756]
[1748839013226,1.84030344,105030.0,105020.0,0.06756]
[1748839014025,1.69186459,105030.0,105020.0,0.06756]
[1748839014219,1.8982215,105030.0,105020.0,0.06756]
[1748839014826,2.0470062,105030.0,105020.0,0.06756]
[1748839015018,1.84064929,105030.0,105020.0,0.06756]
[1748839023536,1.11904929,105030.0,105020.0,0.06756]
[1748839023736,1.84064929,105030.0,105020.0,0.06756]
[1748839024735,2.92088929,105030.0,105020.0,0.06756]
[1748839025236,2.92088929,105030.0,105020.0,0.03626]
[1748839025436,2.92088929,105030.0,105020.0,0.00576]
[1748839025437,2.90001011,105030.0,105020.0,0.00576]
[1748839025736,0.1903602,105020.0,105010.0,0.00014297]
[1748839026035,1.50985943,105020.0,105010.0,0.00014297]
[1748839026237,1.60508343,105020.0,105010.0,0.00014297]
[1748839026437,1.60508343,105020.0,105010.0,7e-08]
[1748839026643,0.1903965,105000.0,104990.0,0.21358426]
[1748839026936,1.70131073,105000.0,104990.0,0.15414916]
[1748839027125,1.79541073,105000.0,104990.0,0.15414916]
[1748839027323,1.91427483,105000.0,104990.0,0.15414916]
[1748839027527,1.91427483,105000.0,104990.0,0.0652]
[1748839027727,1.91427483,105000.0,104990.0,0.065]
[1748839028127,1.91427483,105000.0,104990.0,0.0652]
[1748839028128,1.92366382,105000.0,104990.0,0.0652]
[1748839028327,1.92366382,105000.0,104990.0,0.07196]
[1748839028835,1.92466382,105000.0,104990.0,0.07396]
[1748839029040,1.97155248,105000.0,104990.0,0.07396]
[1748839029340,1.85552296,105000.0,104990.0,0.07396]
[1748839030231,1.9716838,105000.0,104990.0,0.07396]
[1748839030436,1.85552296,105000.0,104990.0,0.07396]
[1748839032237,1.73665886,105000.0,104990.0,0.07396]
[1748839034139,1.73665886,105000.0,104990.0,0.10546]
[1748839035027,1.62049802,105000.0,104990.0,0.10546]
[1748839035228,1.73665886,105000.0,104990.0,0.10546]
[1748839036639,1.19865886,105000.0,104990.0,0.10546]
[1748839036836,1.26903886,105000.0,104990.0,0.10546]
[1748839037038,1.70515886,105000.0,104990.0,0.10546]
[1748839038037,1.73715886,105000.0,104990.0,0.10546]
[1748839040338,1.01555886,105000.0,104990.0,0.10546]
[1748839040641,1.30103886,105000.0,104990.0,0.10546]
[1748839040843,1.73695886,105000.0,104990.0,0.10546]
[1748839041240,1.7412084,105000.0,104990.0,0.10546]
[1748839044649,1.2036084,105000.0,104990.0,0.10546]
[1748839044855,1.7406084,105000.0,104990.0,0.10546]
[1748839046249,1.7406084,105000.0,104990.0,0.07396]
[1748839046640,1.7406084,105000.0,104990.0,0.07376]
[1748839047243,1.8594725,105000.0,104990.0,0.07396]
[1748839048150,1.8584725,105000.0,104990.0,0.07196]
[1748839048340,1.8604725,105000.0,104990.0,0.07296]
[1748839048748,1.8614725,105000.0,104990.0,0.10256]
[1748839051150,1.86146183,105000.0,104990.0,0.10256]
[1748839055248,1.74259773,105000.0,104990.0,0.10256]
[1748839055455,1.89128144,105000.0,104990.0,0.10256]
[1748839056259,1.86165989,105000.0,104990.0,0.10256]
[1748839059957,1.42597989,105000.0,104990.0,0.10256]
[1748839060161,1.86105989,105000.0,104990.0,0.10256]
[1748839061161,1.86105989,105000.0,104990.0,0.14754944]
[1748839062257,1.86105989,105000.0,104990.0,0.14755048]
[1748839062453,1.74199773,105000.0,104990.0,0.10256]
[1748839062960,1.86107962,105000.0,104990.0,0.10256]
[1748839065359,1.13947962,105000.0,104990.0,0.10256]
[1748839065566,1.86107962,105000.0,104990.0,0.10256]
[1748839071168,1.74199773,105000.0,104990.0,0.10256]
[1748839072279,1.74199773,105000.0,104990.0,0.07096]
[1748839072463,1.97723823,105000.0,104990.0,0.11595535]
[1748839072766,2.0933884,105000.0,104990.0,0.05095535]
[1748839072971,1.97429807,105000.0,104990.0,0.00596]
[1748839073160,2.00683161,105000.0,104990.0,0.00576]
[1748839073362,2.00683161,105000.0,104990.0,0.00596]
[1748839080080,1.33945127,105000.0,104990.0,0.00596]
[1748839080272,1.89076144,105000.0,104990.0,0.03676]
[1748839080470,2.00691161,105000.0,104990.0,0.03676]
[1748839081878,1.89140144,105000.0,104990.0,0.03676]
[1748839082186,1.89140144,105000.0,104990.0,0.09896]
[1748839082480,2.00755161,105000.0,104990.0,0.09896]
[1748839085772,2.00755161,105000.0,104990.0,0.06716]
[1748839085973,2.12656955,105000.0,104990.0,0.06716]
[1748839086173,1.97788584,105000.0,104990.0,0.00596]
[1748839086571,2.09403601,105000.0,104990.0,0.00576]
[1748839086877,2.09403601,105000.0,104990.0,0.00596]
[1748839086878,2.12370178,105000.0,104990.0,0.00596]
[1748839087083,2.12370178,105000.0,104990.0,0.00576]
[1748839087282,2.12370178,105000.0,104990.0,0.00596]
[1748839089679,2.12370178,105000.0,104990.0,0.00576]
[1748839089883,2.12370178,105000.0,104990.0,0.00596]
[1748839099586,1.97501807,105000.0,104990.0,0.00596]
[1748839100086,2.18292929,105000.0,104990.0,0.00596]
[1748839100597,2.18292929,105000.0,104990.0,0.00576]
[1748839100796,2.18292929,105000.0,104990.0,0.00596]
[1748839102193,0.1904146,104990.0,104980.0,0.00223861]
[1748839102398,0.87971494,104990.0,104980.0,0.00223861]
[1748839102591,0.87971494,104990.0,104980.0,0.03453861]
[1748839102792,0.87971494,104990.0,104980.0,0.06543861]
[1748839103192,1.02844408,104990.0,104980.0,0.06543861]
[1748839103391,1.02844408,104990.0,104980.0,0.06743861]
[1748839104998,1.02844408,104990.0,104980.0,0.07219861]
[1748839106294,2.10912408,104990.0,104980.0,0.07219861]
[1748839107402,2.78953391,104990.0,104980.0,0.07219861]
[1748839116206,2.79378345,104990.0,104980.0,0.07219861]
[1748839125119,2.07218345,104990.0,104980.0,0.07219861]
[1748839125313,2.79378345,104990.0,104980.0,0.07219861]
[1748839130219,2.90993362,104990.0,104980.0,0.07219861]
[1748839130413,2.64505431,104990.0,104980.0,0.07219861]
[1748839131014,2.74633431,104990.0,104980.0,0.07219861]
[1748839133223,2.74633431,104990.0,104980.0,0.07109861]
[1748839133420,2.89506345,104990.0,104980.0,0.07109861]
[1748839134418,2.89506345,104990.0,104980.0,0.07089861]
[1748839143226,2.35802345,104990.0,104980.0,0.07089861]
[1748839143426,2.89406345,104990.0,104980.0,0.07089861]
[1748839148836,2.9133876,104990.0,104980.0,0.07089861]
[1748839150935,2.1917876,104990.0,104980.0,0.07089861]
[1748839151127,2.9133876,104990.0,104980.0,0.07089861]
[1748839151838,2.76465846,104990.0,104980.0,0.07089861]
[1748839153433,2.91354051,104990.0,104980.0,0.07089861]
[1748839169935,2.91354051,104990.0,104980.0,0.00789861]
[1748839170844,3.02969068,104990.0,104980.0,0.00789861]
[1748839171549,2.91354051,104990.0,104980.0,0.00789861]
[1748839176439,3.02969068,104990.0,104980.0,0.00789861]
[1748839181047,2.91354051,104990.0,104980.0,0.00789861]
[1748839181952,3.02969068,104990.0,104980.0,0.00789861]
[1748839183556,2.91354051,104990.0,104980.0,0.00789861]
[1748839184452,2.19194051,104990.0,104980.0,0.00789861]
[1748839184654,2.91354051,104990.0,104980.0,0.00789861]
[1748839184855,2.91354051,104990.0,104980.0,0.03789861]
[1748839186351,3.02969068,104990.0,104980.0,0.03789861]
[1748839187058,2.91354051,104990.0,104980.0,0.03789861]
[1748839189151,3.02969068,104990.0,104980.0,0.03789861]
[1748839190555,3.02969068,104990.0,104980.0,0.03689861]
[1748839190759,3.03469068,104990.0,104980.0,0.03789861]
[1748839190959,3.03969068,104990.0,104980.0,0.03789861]
[1748839192660,3.03969068,104990.0,104980.0,0.00789861]
[1748839194553,3.03969068,104990.0,104980.0,0.03969861]
[1748839197656,3.09871985,104990.0,104980.0,0.03969861]
[1748839199265,3.09871985,104990.0,104980.0,0.07089861]
[1748839201161,2.66355985,104990.0,104980.0,0.07089861]
[1748839201465,3.09859985,104990.0,104980.0,0.07089861]
[1748839204971,2.98244968,104990.0,104980.0,0.07089861]
[1748839206369,3.03954714,104990.0,104980.0,0.07089861]
[1748839206564,2.89068863,104990.0,104980.0,0.07109861]
[1748839209470,2.77453846,104990.0,104980.0,0.07109861]
[1748839212374,2.92337547,104990.0,104980.0,0.07109861]
[1748839212570,3.03952564,104990.0,104980.0,0.07109861]
[1748839214677,2.89068863,104990.0,104980.0,0.07109861]
[1748839214976,3.03952688,104990.0,104980.0,0.07109861]
[1748839217378,2.89068863,104990.0,104980.0,0.07109861]
[1748839217578,3.09859985,104990.0,104980.0,0.07109861]
[1748839221973,2.98244968,104990.0,104980.0,0.07109861]
[1748839223180,3.13129805,104990.0,104980.0,0.07109861]
[1748839223376,2.92338683,104990.0,104980.0,0.07109861]
[1748839226982,3.039537,104990.0,104980.0,0.07109861]
[1748839227186,2.38746683,104990.0,104980.0,0.07109861]
[1748839227487,2.82698683,104990.0,104980.0,0.07109861]
[1748839228077,2.82698683,104990.0,104980.0,0.10269861]
[1748839228266,2.67813846,104990.0,104980.0,0.10269861]
[1748839229177,2.82698683,104990.0,104980.0,0.10269861]
[1748839230181,2.67813846,104990.0,104980.0,0.10269861]
[1748839231883,2.82698683,104990.0,104980.0,0.10269861]
[1748839233188,2.39202683,104990.0,104980.0,0.10269861]
[1748839233486,2.67813846,104990.0,104980.0,0.10269861]
[1748839233689,2.79715445,104990.0,104980.0,0.10269861]
[1748839235587,2.68100428,104990.0,104980.0,0.10269861]
[1748839235784,2.79715445,104990.0,104980.0,0.10269861]
[1748839236992,2.79715445,104990.0,104980.0,0.10249861]
[1748839240791,2.79711445,104990.0,104980.0,0.10249861]
[1748839243384,2.67809846,104990.0,104980.0,0.10249861]
[1748839243689,2.82694683,104990.0,104980.0,0.10249861]
[1748839244295,2.94584887,104990.0,104980.0,0.10249861]
[1748839244795,3.04584887,104990.0,104980.0,0.10249861]
[1748839244995,2.68504887,104990.0,104980.0,0.10249861]
[1748839249113,2.71634887,104990.0,104980.0,0.10249861]
[1748839249406,2.5675005,104990.0,104980.0,0.10249861]
[1748839250699,2.6005005,104990.0,104980.0,0.10249861]
[1748839252207,2.6318005,104990.0,104980.0,0.10249861]
[1748839252704,1.43221846,104990.0,104980.0,0.10249861]
[1748839253201,1.43221846,104990.0,104980.0,0.14747822]
[1748839255304,1.5511205,104990.0,104980.0,0.14747822]
[1748839256099,1.1903205,104990.0,104980.0,0.14747822]
[1748839256405,1.5511205,104990.0,104980.0,0.14747822]
[1748839257495,1.5511205,104990.0,104980.0,0.14750708]
[1748839260601,1.5511205,104990.0,104980.0,0.10249861]
[1748839265407,1.5511205,104990.0,104980.0,0.14755238]
[1748839270712,1.43221846,104990.0,104980.0,0.10249861]
[1748839270913,1.58106683,104990.0,104980.0,0.10249861]
[1748839271412,1.58127884,104990.0,104980.0,0.10249861]
[1748839273016,1.22047884,104990.0,104980.0,0.10249861]
[1748839273215,1.58127884,104990.0,104980.0,0.10249861]
[1748839276617,1.55153751,104990.0,104980.0,0.14755404]
[1748839278305,1.55153751,104990.0,104980.0,0.14755397]
[1748839278918,1.55133751,104990.0,104980.0,0.14755397]
[1748839279115,1.19053751,104990.0,104980.0,0.14755397]
[1748839279416,1.55133751,104990.0,104980.0,0.14755397]
[1748839287214,1.55133751,104990.0,104980.0,0.14766922]
[1748839291626,1.43223047,104990.0,104980.0,0.10249861]
[1748839291822,1.43223047,104990.0,104980.0,0.07089861]
[1748839292236,1.58107884,104990.0,104980.0,0.07089861]
[1748839299034,0.86514867,104990.0,104980.0,0.40937968]
[1748839299233,0.93604466,104990.0,104980.0,0.5706971]
[1748839299529,0.90474466,104990.0,104980.0,0.5706971]
[1748839299927,0.90474466,104990.0,104980.0,0.8459491]
[1748839300128,0.90474466,104990.0,104980.0,1.44038432]
[1748839300129,0.53794466,104990.0,104980.0,1.44038432]
[1748839300325,0.4207685,104990.0,104980.0,1.78622185]
[1748839300530,0.4207685,104990.0,104980.0,1.92661325]
[1748839300730,0.4197685,104990.0,104980.0,1.90749766]
[1748839301024,0.20066414,104990.0,104980.0,1.90749766]
[1748839301231,0.20066414,104990.0,104980.0,1.51799141]
[1748839301433,0.20066414,104990.0,104980.0,1.45855631]
[1748839301626,0.20066414,104990.0,104980.0,1.90253514]
[1748839301831,0.19966414,104990.0,104980.0,1.90153514]
[1748839302139,0.19966414,104990.0,104980.0,1.93789474]
[1748839303536,0.19966414,104990.0,104980.0,1.96097024]
[1748839303739,0.19966414,104990.0,104980.0,1.90153514]
[1748839304828,0.19966414,104990.0,104980.0,1.85685052]
[1748839305024,0.19966414,104990.0,104980.0,1.90135033]
[1748839305230,0.19966414,104990.0,104980.0,1.54055033]
[1748839305431,0.19966414,104990.0,104980.0,1.90135033]
[1748839307842,0.00924954,104990.0,104980.0,1.90135033]
[1748839308042,0.19966234,104990.0,104980.0,1.99714503]
[1748839308537,0.19966234,104990.0,104980.0,1.90135033]
[1748839308840,0.19966234,104990.0,104980.0,1.93770993]
[1748839309245,0.19966234,104990.0,104980.0,1.84816429]
[1748839309431,0.19966234,104990.0,104980.0,1.93763915]
[1748839309637,0.19966234,104990.0,104980.0,1.59127955]
[1748839310236,0.19966234,104990.0,104980.0,1.62763915]
[1748839310837,0.19966234,104990.0,104980.0,1.73843915]
[1748839311129,0.19966234,104990.0,104980.0,1.70207955]
[1748839312745,0.19966234,104990.0,104980.0,1.70205383]
[1748839313737,0.19966234,104990.0,104980.0,1.61260469]
[1748839313938,0.19966234,104990.0,104980.0,1.70205168]
[1748839314332,0.19966234,104990.0,104980.0,1.05604951]
[1748839314533,0.37911251,104990.0,104980.0,1.43072951]
[1748839314753,0.41131251,104990.0,104980.0,0.79643978]
[1748839315047,0.41131251,104990.0,104980.0,1.19546409]
[1748839315233,0.41131251,104990.0,104980.0,0.39118409]
[1748839315437,0.41131251,104990.0,104980.0,0.21133392]
[1748839315638,0.41131251,104990.0,104980.0,0.21113392]
[1748839316242,0.41131251,104990.0,104980.0,0.51791499]
[1748839316548,0.41131251,104990.0,104980.0,0.54911499]
[1748839316748,0.41131251,104990.0,104980.0,0.43831499]
[1748839318148,0.41131251,104990.0,104980.0,0.43833553]
[1748839319444,0.41131251,104990.0,104980.0,0.44833553]
[1748839321240,0.41131251,104990.0,104980.0,0.44834567]
[1748839322047,0.77211251,104990.0,104980.0,0.44834567]
[1748839324553,0.77211251,104990.0,104980.0,0.3009955]
[1748839325353,0.77211251,104990.0,104980.0,0.41714567]
[1748839325542,0.77211251,104990.0,104980.0,0.41717141]
[1748839326945,0.77211251,104990.0,104980.0,0.40717141]
[1748839327148,0.41131251,104990.0,104980.0,0.40717141]
[1748839327343,0.77211251,104990.0,104980.0,0.40717141]
[1748839327547,0.77211251,104990.0,104980.0,0.45168317]
[1748839328147,0.65596234,104990.0,104980.0,0.45168317]
[1748839328350,0.77211251,104990.0,104980.0,0.45168317]
[1748839328546,0.77211251,104990.0,104980.0,0.48428317]
[1748839329854,0.77211251,104990.0,104980.0,0.48437226]
[1748839331853,0.77211251,104990.0,104980.0,0.43981612]
[1748839336651,0.77211251,104990.0,104980.0,0.06943505]
[1748839336847,0.88826268,104990.0,104980.0,0.06943505]
[1748839337046,0.88826268,104990.0,104980.0,0.05199104]
[1748839337047,1.4793642,104990.0,104980.0,0.05199104]
[1748839337260,1.4793642,104990.0,104980.0,0.00689861]
[1748839337261,2.92894856,104990.0,104980.0,0.00689861]
[1748839337453,2.8098442,104990.0,104980.0,0.00709861]
[1748839337761,2.9425424,104990.0,104980.0,0.00709861]
[1748839337953,2.9425424,104990.0,104980.0,0.00689861]
[1748839338156,2.79369403,104990.0,104980.0,0.00689861]
[1748839338359,2.79369403,104990.0,104980.0,0.00709861]
[1748839339956,2.9425424,104990.0,104980.0,0.00709861]
[1748839340160,2.9425424,104990.0,104980.0,0.00689861]
[1748839340465,2.9425424,104990.0,104980.0,0.00709861]
[1748839342056,2.9124597,104990.0,104980.0,0.00709861]
[1748839342257,2.6624597,104990.0,104980.0,0.00709861]
[1748839349567,2.5672077,104990.0,104980.0,0.00709861]
[1748839350470,2.33490736,104990.0,104980.0,0.00709861]
[1748839350767,2.5672077,104990.0,104980.0,0.00709861]
[1748839362389,2.45105753,104990.0,104980.0,0.00709861]
[1748839362594,2.55157753,104990.0,104980.0,0.07059861]
[1748839362887,2.55157753,104990.0,104980.0,0.10199861]
[1748839362888,2.45607753,104990.0,104980.0,0.10199861]
[1748839363083,2.89051753,104990.0,104980.0,0.10199861]
[1748839363488,2.77175186,104990.0,104980.0,0.10199861]
[1748839366091,2.89051753,104990.0,104980.0,0.10199861]
[1748839369084,2.77175186,104990.0,104980.0,0.10199861]
[1748839369290,2.89051753,104990.0,104980.0,0.10199861]
[1748839371794,2.89051753,104990.0,104980.0,0.10179861]
[1748839373494,2.77432736,104990.0,104980.0,0.10179861]
[1748839373694,2.89047753,104990.0,104980.0,0.10179861]
[1748839375191,2.77171186,104990.0,104980.0,0.10179861]
[1748839376592,2.77167186,104990.0,104980.0,0.10179861]
[1748839377691,2.65552169,104990.0,104980.0,0.10179861]
[1748839378089,2.77167186,104990.0,104980.0,0.10179861]
[1748839381904,2.23679186,104990.0,104980.0,0.29222941]
[1748839382104,2.77155186,104990.0,104980.0,0.29222941]
[1748839382308,2.89031753,104990.0,104980.0,0.29222941]
[1748839383401,2.89031753,104990.0,104980.0,0.10179861]
[1748839384706,2.89031753,104990.0,104980.0,0.29222941]
[1748839386304,1.73439753,104990.0,104980.0,0.29222941]
[1748839386495,1.61563186,104990.0,104980.0,0.33731936]
[1748839386698,2.04995186,104990.0,104980.0,0.45346953]
[1748839386902,0.96947186,104990.0,104980.0,0.45346953]
[1748839390897,0.96947186,104990.0,104980.0,0.45345509]
[1748839392402,1.00197186,104990.0,104980.0,0.45345509]
[1748839393807,1.03407186,104990.0,104980.0,0.45345509]
[1748839393999,0.91792169,104990.0,104980.0,0.45345509]
[1748839394203,0.45150169,104990.0,104980.0,0.45345509]
[1748839395107,0.45150169,104990.0,104980.0,0.56960526]
[1748839395410,0.45150169,104990.0,104980.0,0.56961244]
[1748839395597,0.45150169,104990.0,104980.0,0.45346227]
[1748839397109,0.41900169,104990.0,104980.0,0.56961244]
[1748839397502,0.31856169,104990.0,104980.0,0.56961244]
[1748839398107,0.21856169,104990.0,104980.0,0.56961244]
[1748839398704,0.21856169,104990.0,104980.0,0.57919912]
[1748839399514,0.21856169,104990.0,104980.0,0.46304895]
[1748839399717,0.21856169,104990.0,104980.0,0.46303938]
[1748839400713,0.21856169,104990.0,104980.0,0.50758106]
[1748839402314,0.24876169,104990.0,104980.0,0.50758106]
[1748839404120,0.24876169,104990.0,104980.0,0.50758708]
[1748839404322,0.36491186,104990.0,104980.0,0.50758708]
[1748839404510,0.42801186,104990.0,104980.0,0.50758708]
[1748839407421,0.31186169,104990.0,104980.0,0.98453725]
[1748839407621,0.31186169,104990.0,104980.0,0.62373725]
[1748839407823,0.31186169,104990.0,104980.0,0.98453725]
[1748839408021,0.31186169,104990.0,104980.0,0.86838708]
[1748839408517,0.31186169,104990.0,104980.0,0.46252308]
[1748839408720,0.31186169,104990.0,104980.0,0.86841164]
[1748839410210,0.31186169,104990.0,104980.0,0.74267479]
[1748839410420,0.31186169,104990.0,104980.0,0.85882496]
[1748839410620,0.42801186,104990.0,104980.0,0.85882496]
[1748839411415,0.31186169,104990.0,104980.0,0.85882496]
[1748839412122,0.31186169,104990.0,104980.0,0.86822836]
[1748839412925,0.31186169,104990.0,104980.0,0.82315239]
[1748839413226,0.31186169,104990.0,104980.0,0.7427008]
[1748839413424,0.42801186,104990.0,104980.0,0.85885097]
[1748839415227,0.42801186,104990.0,104980.0,0.49805097]
[1748839415429,0.42801186,104990.0,104980.0,0.85885097]
[1748839416223,0.42801186,104990.0,104980.0,0.86853391]
[1748839416419,0.42801186,104990.0,104980.0,0.8833996]
[1748839416620,0.31186169,104990.0,104980.0,0.8833996]
[1748839420437,0.29296234,104990.0,104980.0,0.8833996]
[1748839421427,0.29296234,104990.0,104980.0,0.92800572]
[1748839423829,0.29296234,104990.0,104980.0,0.91832278]
[1748839424031,0.29296234,104990.0,104980.0,0.92777949]
[1748839424418,0.29296234,104990.0,104980.0,0.87371666]
[1748839424623,0.40911251,104990.0,104980.0,0.87371666]
[1748839426233,0.40911251,104990.0,104980.0,0.95472388]
[1748839429328,0.40911251,104990.0,104980.0,0.96472388]
[1748839430726,0.40911251,104990.0,104980.0,0.96471433]
[1748839430926,0.29296234,104990.0,104980.0,0.96471433]
[1748839431537,0.50947251,104990.0,104980.0,0.96471433]
[1748839431839,0.39332234,104990.0,104980.0,0.92835473]
[1748839432635,0.39332234,104990.0,104980.0,0.86891963]
[1748839433030,0.39332234,104990.0,104980.0,0.82378229]
[1748839433233,0.39332234,104990.0,104980.0,0.86891769]
[1748839434637,0.39332234,104990.0,104980.0,0.98506786]
[1748839435133,0.39332234,104990.0,104980.0,0.98504523]
[1748839439030,0.39332234,104990.0,104980.0,1.02140483]
[1748839439228,0.39332234,104990.0,104980.0,0.98504523]
[1748839441942,0.39332234,104990.0,104980.0,1.02140483]
[1748839442535,0.39332234,104990.0,104980.0,1.03624571]
[1748839442729,0.39332234,104990.0,104980.0,1.08083681]
[1748839445434,0.00924954,104990.0,104980.0,1.99238698]
[1748839445635,0.00924954,104990.0,104980.0,2.40480616]
[1748839445830,0.01905828,105000.0,104990.0,0.42271294]
[1748839446036,0.01905828,105000.0,104990.0,1.30826091]
[1748839446340,0.01905828,105000.0,104990.0,1.43982425]
[1748839447046,0.01905828,105000.0,104990.0,1.48486235]
[1748839447230,0.01905828,105000.0,104990.0,1.54415579]
[1748839448337,0.01905828,105000.0,104990.0,1.54991579]
[1748839448538,0.02505828,105000.0,104990.0,1.54991579]
[1748839449346,0.01905828,105000.0,104990.0,1.55291579]
[1748839449942,0.01905828,105000.0,104990.0,1.66371579]
[1748839450241,0.01905828,105000.0,104990.0,1.45843685]
[1748839451549,0.01905828,105000.0,104990.0,1.45883134]
[1748839451746,0.20945278,105000.0,104990.0,1.34268117]
[1748839451947,0.20945278,105000.0,104990.0,1.762548]
[1748839452142,0.20945278,105000.0,104990.0,1.327468]
[1748839452346,0.20945278,105000.0,104990.0,1.762828]
[1748839452547,0.20945278,105000.0,104990.0,1.327468]
[1748839452841,0.20945278,105000.0,104990.0,1.762868]
[1748839455839,0.20945278,105000.0,104990.0,1.652068]
[1748839456048,0.20945278,105000.0,104990.0,1.65205441]
[1748839457258,0.20945278,105000.0,104990.0,1.21665441]
[1748839457444,0.20945278,105000.0,104990.0,1.65185441]
[1748839459149,0.21370232,105000.0,104990.0,1.65185441]
[1748839459347,0.21370232,105000.0,104990.0,1.53566424]
[1748839459555,0.31150232,105000.0,104990.0,1.65181441]
[1748839459752,0.31150232,105000.0,104990.0,1.65161441]
[1748839459954,0.31150232,105000.0,104990.0,1.65181441]
[1748839460455,0.31150232,105000.0,104990.0,1.65180516]
[1748839461752,0.31150232,105000.0,104990.0,1.69622208]
[1748839462352,0.31150232,105000.0,104990.0,1.73254142]
[1748839463055,0.31150232,105000.0,104990.0,1.29738142]
[1748839463251,0.31150232,105000.0,104990.0,1.73246142]
[1748839464857,0.31150232,105000.0,104990.0,1.73248239]
[1748839465757,0.42765249,105000.0,104990.0,0.62701789]
[1748839465962,0.42765249,105000.0,104990.0,0.74316806]
[1748839466165,0.42765249,105000.0,104990.0,0.69854165]
[1748839466354,0.42765249,105000.0,104990.0,0.69874165]
[1748839466863,0.52765249,105000.0,104990.0,0.69874165]
[1748839467761,0.62825249,105000.0,104990.0,0.69874165]
[1748839469052,0.51210232,105000.0,104990.0,0.69874165]
[1748839469253,0.51210232,105000.0,104990.0,0.65334197]
[1748839469452,0.51210232,105000.0,104990.0,0.69878207]
[1748839469973,0.51210232,105000.0,104990.0,0.5826319]
[1748839470262,0.51210232,105000.0,104990.0,0.69878207]
[1748839473067,0.62825249,105000.0,104990.0,0.3922193]
[1748839473370,0.98905249,105000.0,104990.0,0.28836947]
[1748839473571,0.98905249,105000.0,104990.0,0.28816947]
[1748839473761,0.98905249,105000.0,104990.0,0.2881877]
[1748839473962,0.98905249,105000.0,104990.0,0.2883877]
[1748839474459,0.98905249,105000.0,104990.0,0.1883877]
[1748839478279,0.98905249,105000.0,104990.0,0.18838536]
[1748839479073,0.98905249,105000.0,104990.0,0.07223519]
[1748839479983,0.98905249,105000.0,104990.0,0.0267792]
[1748839480480,1.10520266,105000.0,104990.0,0.0722355]
[1748839480779,1.10520266,105000.0,104990.0,0.01752966]
[1748839481279,1.10785121,105000.0,104990.0,0.01752966]
[1748839484279,0.98908554,105000.0,104990.0,0.01752966]
[1748839484675,1.33432954,105000.0,104990.0,0.01752966]
[1748839485187,1.56927843,105000.0,104990.0,0.01732966]
[1748839485487,1.56927843,105000.0,104990.0,0.01752966]
[1748839490184,1.31927843,105000.0,104990.0,0.01752966]
[1748839496079,1.68007843,105000.0,104990.0,0.01752966]
[1748839499598,1.68007843,105000.0,104990.0,0.01732966]
[1748839499801,1.68007843,105000.0,104990.0,0.01752966]
[1748839500388,1.56131276,105000.0,104990.0,0.01752966]
[1748839501196,1.68054692,105000.0,104990.0,0.01552966]
[1748839502196,1.82939529,105000.0,104990.0,0.01552966]
[1748839502395,1.82939529,105000.0,104990.0,0.01352966]
[1748839502597,1.83239529,105000.0,104990.0,0.01452966]
[1748839504190,1.48379469,105000.0,104990.0,0.01452966]
[1748839504698,1.71619509,105000.0,104990.0,0.01452966]
[1748839508095,1.71194555,105000.0,104990.0,0.01452966]
[1748839508888,1.71619509,105000.0,104990.0,0.01452966]
[1748839510604,2.15119509,105000.0,104990.0,0.04592966]
[1748839511100,2.14694555,105000.0,104990.0,0.04592966]
[1748839511994,2.15119509,105000.0,104990.0,0.04592966]
[1748839513102,2.15119509,105000.0,104990.0,0.07662966]
[1748839513499,2.05595109,105000.0,104990.0,0.07662966]
[1748839513903,2.05170155,105000.0,104990.0,0.07662966]
[1748839519007,2.05595109,105000.0,104990.0,0.07662966]
[1748839519606,2.17215129,105000.0,104990.0,0.07662966]
[1748839520502,2.02330292,105000.0,104990.0,0.07662966]
[1748839520894,1.90710272,105000.0,104990.0,0.07662966]
[1748839521095,2.05587378,105000.0,104990.0,0.07662966]
[1748839521301,1.90710272,105000.0,104990.0,0.07662966]
[1748839522000,1.90285318,105000.0,104990.0,0.07662966]
[1748839522196,1.13485278,105000.0,104990.0,0.07662966]
[1748839522400,1.9946842,105000.0,104990.0,0.07662966]
[1748839522597,1.49462867,105000.0,104990.0,0.07662966]
[1748839522813,1.25002887,105000.0,104990.0,0.10922966]
[1748839523508,1.63531805,105000.0,104990.0,0.10922966]
[1748839523698,1.73451805,105000.0,104990.0,0.10902966]
[1748839523902,1.73451805,105000.0,104990.0,0.10922966]
[1748839523903,1.61831785,105000.0,104990.0,0.10922966]
[1748839524205,1.61831785,105000.0,104990.0,0.10902966]
[1748839524411,1.61831785,105000.0,104990.0,0.10922966]
[1748839525106,1.62256739,105000.0,104990.0,0.10922966]
[1748839527315,1.62249525,105000.0,104990.0,0.10922966]
[1748839527507,1.50633112,105000.0,104990.0,0.10922966]
[1748839530315,1.79258645,105000.0,104990.0,0.10922966]
[1748839530511,2.00049767,105000.0,104990.0,0.10922966]
[1748839531811,1.94130182,105000.0,104990.0,0.10922966]
[1748839533016,1.21970182,105000.0,104990.0,0.10922966]
[1748839533310,1.94130182,105000.0,104990.0,0.10922966]
[1748839536214,1.93705228,105000.0,104990.0,0.10922966]
[1748839536611,1.40113228,105000.0,104990.0,0.10922966]
[1748839536811,1.33483228,105000.0,104990.0,0.10922966]
[1748839537012,1.72155691,105000.0,104990.0,0.10922966]
[1748839537710,1.84050727,105000.0,104990.0,0.10922966]
[1748839538209,1.37288727,105000.0,104990.0,0.10922966]
[1748839538405,1.80760727,105000.0,104990.0,0.10922966]
[1748839539007,1.80756727,105000.0,104990.0,0.10922966]